Cogmind - Beta 16 @@@ ROGUE MODE // 2025.12.19 @ 02:50:33 Player: AngelSpirit Result: Destroyed by LA-8P3(R) with Subdweller Machine Gun Performance ------------- Evolutions (0) 0 Regions Visited (2) 400 Robots Destroyed (33) 165 Value Destroyed (919) 919 Prototype IDs (13) 260 Alien Tech Used (0) 0 Bonus (0) 0 TOTAL SCORE: 1744 Bonus ------- None Cogmind --------- Core Integrity 0/250 Matter 274/300 Energy 170/170 System Corruption 0% Temperature Cool (0) Movement Rolling (105) Ox1 Location -10/Subcaves Parts ------- > --- POWER (1) -------- Makeshift Power Source > --- PROPULSION (2) --- Armored Wheel Armored Wheel > --- UTILITY (2) ------ Large Storage Unit Makeshift Light Armor Plating > --- WEAPON (2) ------- Subdweller Laser Heavy Hammer > --- INVENTORY (15) --- Subdweller Power Source Arachnoskeleton Armored Wheel Subdweller Monowheel Subdweller Monowheel High-capacity Matter Pod (200) Subdweller Optics Subdweller Optics Sensor Array Scrap Shield Peak State ------------ > --- POWER ------------ Makeshift Power Source > --- PROPULSION ------- Armored Wheel Armored Wheel > --- UTILITY ---------- Large Storage Unit Makeshift Light Armor Plating > --- WEAPON ----------- Subdweller Laser Subdweller Machine Gun > --- INVENTORY -------- Subdweller Power Source Arachnoskeleton Armored Wheel Subdweller Monowheel Subdweller Monowheel High-capacity Matter Pod Subdweller Optics Subdweller Optics Sensor Array Scrap Shield [Rating: 20] Favorites ----------- Power Ion Engine Engine Ion Engine Power Core Light Nuclear Core Propulsion Armored Wheel Treads Light Treads Wheel Armored Wheel Flight Unit Improved Flight Unit Utility Scrap Shield Device Sensor Array Storage Large Storage Unit Processor Improved Targeting Computer Protection Scrap Shield Weapon Subdweller Laser Energy Gun Subdweller Laser Energy Cannon Subdweller Beam Cannon Ballistic Gun Assault Rifle Launcher Grenade Launcher Special Weapon Flamer Impact Weapon Heavy Hammer Build | -11 -10 -10 ------- Run | Yrd Mat Sub Slots Evolved . | . . . Power . | . . . Propulsion . | . . . Utility . | . . . Weapon . | . . . Parts Attached 36 | 8 11 17 Power 6 | 1 2 3 Engine 5 | 1 1 3 Core 1 | . 1 . Reactor . | . . . Propulsion 10 | 4 4 2 Treads 2 | 2 . . Leg . | . . . Wheel 7 | 2 3 2 Hover . | . . . Flight 1 | . 1 . Utility 9 | 1 3 5 Device 3 | . 1 2 Storage 2 | 1 1 . Processor 1 | . 1 . Hackware . | . . . Protection 3 | . . 3 Artifact . | . . . Weapon 11 | 2 2 7 Energy Gun 3 | . . 3 Energy Cannon 2 | . 1 1 Ballistic Gun 3 | 2 . 1 Ballistic Cannon . | . . . Launcher 1 | . 1 . Special Weapon 1 | . . 1 Impact Weapon 1 | . . 1 Slashing Weapon . | . . . Piercing Weapon . | . . . Special Melee Weapon . | . . . Unidentified Prototypes 1 | . 1 . Parts Lost 7 | . 3 4 Power 3 | . 1 2 Propulsion 1 | . 1 . Utility 1 | . . 1 Weapon 2 | . 1 1 Highest Loss Streak 3 | . 2 3 To Critical Strikes . | . . . Average Backups 6 | 1 6 5 Power . | . . . Propulsion 2 | 1 3 2 Utility 2 | . 2 3 Weapon . | . . . Tool/Special . | . . . Unused Backups 11 | . 1 10 Power 1 | . . 1 Propulsion 5 | . 1 4 Utility 5 | . . 5 Weapon . | . . . Tool/Special . | . . . Average Slot Usage (%) 92 | . 97 89 Engine 12 | . 11 13 Treads 8 | . 23 . Wheel 19 | . 4 28 Device 3 | . 3 3 Storage 9 | . 14 6 Processor 2 | . 8 . Protection 5 | . . 8 Energy Gun 5 | . . 8 Energy Cannon 5 | . 2 7 Ballistic Gun 10 | . 23 4 Launcher 3 | . 2 4 Impact Weapon 1 | . . 1 Peak Build Rating 20 | 6 13 20 Average Rating 12 | 4 8 14 On Entrance 6 | . 6 12 Avg Prop Armor Cover (%) . | . . . Naked Turns . | . . . Heaviest Build 37 | 11 36 37 Greatest Support 40 | 40 40 32 Greatest Overweight (x) 3 | . 1 3 Average Overweight (x) . | . . . Largest Inventory Capacity 15 | 8 15 15 Average Capacity 9 | 6 8 9 Most Carried 15 | 2 8 15 Average Carried 6 | 1 7 6 Final Capacity 15 | 8 15 15 Final Carried 13 | 2 8 13 Class Distribution -------------------- 77% | Mutant 21% | Subdweller-Mutant Dominant Class ---------------- Mutant | -10/Materials Mutant | -10/Subcaves Resources | -11 -10 -10 ----------- Run | Yrd Mat Sub Matter Collected 1315 | 239 567 509 Remotely . | . . . Salvage Created 1088 | . 642 446 Parts 67 | . 37 30 Haulers Intercepted . | . . . Recyclers Shooed . | . . . Parts Field Recycled . | . . . Retrieved Matter . | . . . Parts Self-Destructed 6 | . . 6 Prevented . | . . . Parts Restored . | . . . Kills | -11 -10 -10 ------- Run | Yrd Mat Sub Combat Hostiles Destroyed 27 | . 17 10 Melee 1 | . . 1 Guns 9 | . 8 1 AOE 16 | . 9 7 Classes Destroyed 9 | . 8 1 Builder 1 | . 1 . Tunneler 1 | . 1 . Recycler 1 | . 1 . Operator 1 | . 1 . Turret 1 | . . 1 Watcher 1 | . 1 . Swarmer 7 | . 6 1 Grunt 9 | . 9 . Subdweller 11 | . 2 9 Best Kill Streak 6 | . 6 3 Combat Bots Only 4 | . 4 3 Max Kills in Single Turn 2 | . 2 2 Gunslinging . | . . . Exploded 2 | . 2 2 Melee 1 | . . 1 Uniques/NPCs Destroyed . | . . . Combat | -11 -10 -10 -------- Run | Yrd Mat Sub Hostile Shots Fired 188 | . 78 110 Missed 70 | . 30 40 Hits 118 | . 48 70 Projectile 118 | . 48 70 Critical Strikes 1 | . . 1 Damage Taken 1777 | . 687 1090 Core 258 | . 152 106 Absorbed by Shields . | . . . Core Remaining (%) 100 | 100 . . Volleys Fired 133 | . 72 61 Largest 2 | . 2 2 Hottest 120 | . 80 120 Shots Fired 216 | . 136 80 Gun 168 | . 128 40 Cannon 27 | . 1 26 Launcher 21 | . 7 14 Special . | . . . Kinetic 140 | . 128 12 Thermal 55 | . 1 54 Explosive 21 | . 7 14 Electromagnetic . | . . . Robot Hit Streak 15 | . 10 15 Robot Miss Streak 4 | . 4 3 Penetration Max . | . . . Secondary Targets 3 | . 3 . Max Gunslinging Chain 1 | . 1 . Shots Hit Robots 137 | . 85 52 Core Hits 62 | . 41 21 Critical Kills . | . . . Critical Parts Destroyed . | . . . Critical Strikes . | . . . Melee Attacks 13 | . . 13 Impact 13 | . . 13 Slashing . | . . . Piercing . | . . . Sneak Attacks . | . . . Combat Hostiles . | . . . Follow-up Attacks . | . . . Damage Inflicted 3236 | . 1331 1905 Guns 1419 | . 920 499 Cannons 386 | . 30 356 Explosions 1275 | . 373 902 Melee 148 | . . 148 Ramming 8 | . 8 . Kinetic 1032 | . 920 112 Thermal 773 | . 30 743 Explosive 1275 | . 373 902 Electromagnetic . | . . . Impact 148 | . . 148 Slashing . | . . . Piercing . | . . . Highest Corruption . | . . . Average Corruption . | . . . Corruption Purged . | . . . Corruption Blocked . | . . . Overload Shots . | . . . Overflow Damage 30 | . 6 24 Projectiles . | . . . Explosions 27 | . 6 21 Melee 3 | . . 3 Knockbacks . | . . . Impact . | . . . Kinetic . | . . . Secondary . | . . . Self-Inflicted Damage 234 | . 67 167 Shots 10 | . 3 7 Rammed 1 | . 1 . Targets Rammed 1 | . 1 . Kicked . | . . . Crushed . | . . . Highest Temperature 246 | . 40 246 Average Temperature 29 | . 8 54 Received Heat Transfer 654 | . 303 351 Siege Activations . | . . . Martial Activations . | . . . Shielding Activations . | . . . Robots Disrupted . | . . . Combat Hostiles . | . . . Robots Corrupted 1 | . . 1 Combat Hostiles 1 | . . 1 Parts Fried . | . . . Impact Corruptions 1 | . . 1 Robots Melted . | . . . Combat Hostiles . | . . . Parts Melted 2 | . 2 . Heat Transferred 993 | . 37 956 Parts Sabotaged . | . . . Parts Stolen . | . . . Parts Stripped . | . . . Power Chain Reactions . | . . . Alert | -11 -10 -10 ------- Run | Yrd Mat Sub Maximum Alert Level . | . . . Low Security (%) 100 | 100 100 . Level 1 . | . . . Level 2 . | . . . Level 3 . | . . . Level 4 . | . . . Level 5 . | . . . High Security . | . . . Max Security . | . . . Peak Influence 185 | . 185 . Initial . | . . . Average 82 | . 89 . Influence Increases 587 | . 472 115 Destroy 0b10 Robot/C 340 | . 300 40 Destroy 0b10 Robot/NC 25 | . 25 . Destroy Leader 72 | . 72 . Successful Hack 30 | . 30 . Disable Machine 15 | . 15 . Destroy Structure 30 | . 30 . Lose Combat Pursuer 75 | . . 75 Influence Decreases 556 | . 299 257 Entered New Map 84 | . . 84 Time Decay 432 | . 269 163 Lost Part 40 | . 30 10 Squads Dispatched 4 | . 4 . Investigation 3 | . 3 . Extermination . | . . . Reinforcement 1 | . 1 . Assault . | . . . Garrison . | . . . Intercept . | . . . Searches Triggered . | . . . Construction Impeded . | . . . Haulers Reinforced . | . . . Active Scanning Responses . | . . . Cargo Convoy Interrupts . | . . . Stealth | -11 -10 -10 --------- Run | Yrd Mat Sub Distress Signals 2 | . 2 . Communications Jammed . | . . . Distress Signals . | . . . Times Spotted 46 | . 27 19 Peak Tracking Total 7 | . 7 3 Tactical Retreats 3 | . . 3 Traps | -11 -10 -10 ------- Run | Yrd Mat Sub Traps Triggered . | . . . Indirectly . | . . . Trap Hack Attempts . | . . . Triggered . | . . . Disarmed . | . . . Reprogrammed . | . . . Reused . | . . . Traps Extracted . | . . . Installed 1 | . . 1 Triggered . | . . . Machines | -11 -10 -10 ---------- Run | Yrd Mat Sub Machines Disabled 2 | . 1 1 Max in Single Turn 1 | . 1 1 Machines Repaired . | . . . Machines Dismantled . | . . . Machines Sabotaged . | . . . Overloaded Fab Kills . | . . . Hacking | -11 -10 -10 --------- Run | Yrd Mat Sub Machines Accessed 8 | . 6 2 Terminals 5 | . 5 . Fabricators . | . . . Repair Stations . | . . . Recycling Units 1 | . 1 . Scanalyzers . | . . . Garrison Access . | . . . Total Hacks 31 | . 26 5 Successful 17 | . 12 5 Failed 14 | . 14 . Catastrophic . | . . . Database Lockouts . | . . . Manual 20 | . 20 . Terminals 23 | . 23 . Fabricators . | . . . Repair Stations . | . . . Recycling Units 3 | . 3 . Scanalyzers . | . . . Garrison Access . | . . . Terminal Hacks 12 | . 7 5 Record 4 | . . 4 Part Schematic 1 | . 1 . Robot Analysis 3 | . 3 . Locate Traps 1 | . 1 . Registered Components 1 | . 1 . Zone Layout 1 | . 1 . Proto ID Catalog 1 | . . 1 Fabricator Hacks . | . . . Repair Station Hacks . | . . . Recycling Unit Hacks 1 | . 1 . Retrieve Components 1 | . 1 . Scanalyzer . | . . . Garrison Access Hacks . | . . . Unauthorized Hacks 4 | . 4 . Terminals 4 | . 4 . Botnet 4 | . 4 . Fabricators . | . . . Repair Stations . | . . . Recycling Units . | . . . Scanalyzers . | . . . Garrison Access . | . . . Data Cores Recovered . | . . . Used . | . . . Hacking Detections 6 | . 6 . Full Trace Events 1 | . 1 . Feedback Events . | . . . Feedback Blocked . | . . . Robot Schematics Acquired . | . . . Robots Built . | . . . Authchips . | . . . Time . | . . . Total Robot Build Rating . | . . . Part Schematics Acquired 1 | . 1 . Parts Built . | . . . Authchips . | . . . Time . | . . . Total Part Build Rating . | . . . Part Studies Acquired . | . . . Parts Repaired . | . . . Time . | . . . Parts Recycled . | . . . Recycled Matter . | . . . Retrieved Matter . | . . . Retrieved Components . | . . . Parts Scanalyzed . | . . . Part Schematics Acquired . | . . . Parts Damaged . | . . . Bothacking | -11 -10 -10 ------------ Run | Yrd Mat Sub Used RIF Installer . | . . . Robots Hacked . | . . . Non-combat . | . . . Combat . | . . . Robot Hacks Applied . | . . . Relay Couplers Released . | . . . Fabnet Peak Effective % . | . . . Robots Rewired . | . . . Allies Hacked . | . . . Hacks Repelled . | . . . Allies | -11 -10 -10 -------- Run | Yrd Mat Sub Total Allies . | . . . Largest Group . | . . . Highest-Rated Group . | . . . Highest-Rated Ally . | . . . Total Orders . | . . . Ally Attacks . | . . . Total Damage . | . . . Kills . | . . . Allies Corrupted . | . . . Allies Melted . | . . . Intel | -11 -10 -10 ------- Run | Yrd Mat Sub Active Infowar (turns) 674 | . 237 437 Optics 177 | . . 177 Sensors 260 | . . 260 Structural 237 | . 237 . Robot Analysis Total 3 | . 3 . Derelict Logs Recovered 1 | . . 1 Drone Launches . | . . . Drone Recoveries . | . . . Exploration | -11 -10 -10 ------------- Run | Yrd Mat Sub Turns Passed 2564 | 71 862 1631 Spaces Moved 1705 | 40 424 1241 Core 1 | 1 . . Treads 327 | 32 295 . Legs . | . . . Wheels 1377 | 7 129 1241 Hover . | . . . Flight . | . . . Fastest Speed 50 | 50 90 90 Average Speed 115 | 146 141 105 Slowest Speed 160 | 160 160 135 Overloaded Moves . | . . . Propulsion Burnouts . | . . . Robots Hopped . | . . . Potential Cave-ins . | . . . Cave-ins Triggered . | . . . Exploration Rate (%) 34 | 5 50 49 Regions Visited 2 Branch Regions 1 Pre-discovered Areas 1 | . . 1 Known Exits Taken . | . . . Unknown Exits Taken 2 | 1 1 . Scrap Searched 3 | . . 3 Spaces Dug 10 | . . 10 Terrain Destroyed 119 | . 41 78 Melee 3 | . . 3 Projectile 5 | . . 5 AOE 111 | . 41 70 Terrain Rammed . | . . . Walls Destroyed . | . . . Machines Disabled . | . . . Actions | -11 -10 -10 --------- Run | Yrd Mat Sub Total 2072 | 49 564 1459 Wait 96 | . 28 68 Move 1703 | 39 423 1241 Hop . | . . . Pick Up 31 | . 14 17 Fast Attach 27 | 8 5 14 Attach 9 | . 3 6 Detach 4 | 2 . 2 Swap 13 | . 7 6 Drop 35 | . 11 24 Fire 133 | . 72 61 Melee 13 | . . 13 Ram . | . . . Kick . | . . . Crush 1 | . 1 . Escape Stasis . | . . . Rewire . | . . . Trap 1 | . . 1 Miscellaneous 6 | . . 6 Route ------- -11/Scrapyard -10/Materials (discovered 3 exits: [*Mat x2] / *Sub) -10/Subcaves (discovered 3 exits: [*Mat x2] / [*Rec]) History --------- Turn | Location | Event 35 | -11/Scrapyard | Discovered new exit (range 16) 72 | -11/Scrapyard | Entered Materials 203 | -10/Materials | Discovered new exit (range 14) 321 | -10/Materials | Build established: Mutant 462 | -10/Materials | Discovered new exit (range 7) 572 | -10/Materials | Derelicts attacked the area 783 | -10/Materials | Core integrity fell below 50% 927 | -10/Materials | Discovered new exit (range 7) 934 | -10/Materials | Entered Subcaves 1090 | -10/Subcaves | A swath of the cavern ceiling suddenly collapsed 1146 | -10/Subcaves | Learned location of Recycling (-9) 1155 | -10/Subcaves | Visited Clippyterm 1158 | -10/Subcaves | Learned Factory fabricator intel 1331 | -10/Subcaves | Discovered new exit (range 6) 1359 | -10/Subcaves | Ambushed by Subdweller buried in earth 1403 | -10/Subcaves | Ambushed by Subdweller buried in earth 1446 | -10/Subcaves | Lost 3 parts (1p1u1w) 1532 | -10/Subcaves | Discovered new exit (range 13) 1549 | -10/Subcaves | Core integrity fell below 20% 1747 | -10/Subcaves | Shifting Twisted Machinery released Sub. Optics 1754 | -10/Subcaves | Shifting Twisted Machinery released Mak. Light Armor Plating 1766 | -10/Subcaves | Shifting Twisted Machinery released Sub. Beam Cannon 1922 | -10/Subcaves | Build established: Subdweller-Mutant 1969 | -10/Subcaves | Discovered new exit (range 5) 2012 | -10/Subcaves | Visited 4L-MR0's lab 2027 | -10/Subcaves | Found Arachnoskeleton 2514 | -10/Subcaves | Build established: Mutant 2554 | -10/Subcaves | Ambushed by Subdweller buried in earth 2565 | -10/Subcaves | Destroyed by LA-8P3(R) with Subdweller Machine Gun Last Messages --------------- 02244_ Acquired Sub. Monowheel. 02246_ Acquired Scrap Shield. 02248_ Dropped Scrap Shield. 02300_ Acquired Mak. Light Armor Plating. 02382_ Acquired 30 matter. 02392_ Sub. Machine Gun shoots sparks and powers down. 02396_ Dropped Broken Sub. Machine Gun. 02401_ Acquired Sub. Laser. 02414_ Subatomizers dissect the Disposable Heat Sink. 02448_ Destroyed Autobeam. 02448_ Autobeam Turret destroyed. 02479_ Subatomizers dissect the Sub. Monowheel. 02491_ Dropped Sub. Laser. 02492_ Acquired Hvy. Hammer. 02493_ Dropped Sub. Monowheel. 02496_ Acquired Sub. Monowheel. 02517_ Subatomizers dissect the Sub. Monowheel. 02555_ LA-8P3(R): "ARGHSUB!" Map ----- +----------------------------------------------------+ | #?#"""* ##?## ##?????????????????????????????????? | | ??##" ! #### #######???????????????????????????? | | ???# = # ## ##??????????????????????????? | | ???# ### ##?????????????????????????? | | #### ### #?????????????????????????? | | # #?????????????????????????? | | ## #####???????????????????????? | | ## [ ### #???????????????????????? | | ###### "# ## ##??????????????????????? | | ???## ""#* | ## ##?????????????????????? | | ??## "*%=== ## #?????????????????????? | | ??# &#*=&#### #??????????????????????? | | ??## |& !!%#??## #??????????????????????? | | ??## # !# %!#???## ##??????????????????????? | | ??# # &&& %#????## ##??????????????????????? | | #####& " !* #?????## ####???????????????????? | | # " &!""#% #??????# #???????????????????? | | ""< !&""##% #??????## #???????????????????? | | " ####% #???????### #???????????????????? | | #####?? ????????## #???????????????????? | | ##????? ????????## #???????????????????? | | ##???? #???????## ##???????????????????? | | ##?? "#???????# ##????????????????????? | | #?? " " "#???????# #?????????????????????? | | ! # #??""" """"#???????# #?????????????????????? | | =]###???##<#####????####@##?????????????????????? | | = ##?????##????????# R #??????????????????????? | | &# #???????????????###;;#??????????????????????? | | # ##?????????????????####??????????????????????? | | # ##???????????????????????????????????????????? | | ###????????????????????????????????????????????? | | #?????????????????????????????????????????????? | | #?????????????????????????????????????????????? | | # ##?????????????????????????????????????????????? | | ###??????????????????????????????????????????????? | | ?????????????????????????????????????????????????? | | ?????????????????????????????????????????????????? | | ?????????????????????????????????????????????????? | | ?????????????????????????????????????????????????? | | ?????????????????????????????????????????????????? | | ???????????????????????? ???????????????????????? | | ???????????????????????? ##?????????????????????? | | ????## ????????????????? ##????????????????????? | | ????#"""???????????????? ##???????????????????? | | ????? """ ?????????????? #???????????????????? | | ?????# """?????????????? ???????????????????? | | ????## "#???????????### ???????????????????? | | ????# "####????????# ????????????????????? | | ?????# """ #????????# ?????????????????????? | | ??????#"" ""##??????## ??????????????????????? | +----------------------------------------------------+ Best States ------------- Heat Dissipation 25 Energy Generation 15 Energy Capacity 250 Matter Stores 300 Matter Capacity 300 Sight Range 21 Robot Scan Range 14 Terrain Scan Density 10 Armor Coverage 800 Evasion (%) 42 Targeting Accuracy 6 Recoil Reduction 2 Item Schematics ----------------- Hcp. Storage Unit | -10/Materials | Hacked Robot Schematics ------------------ None Fabricated ------------ Nothing Repaired ---------- Nothing Studied --------- None Alien Tech Used ----------------- None Achievements -------------- None Challenges ------------ None Game ------ Seed GammaForceChainsword Manual? 0 Play Time 00:22:33 Cumulative 313.7 hours Start 2025.12.19 @ 02:30:13 End 2025.12.19 @ 02:50:33 Sessions 1 Manual Loads 0 Difficulty Rogue Special Mode None Game No. 115 Rogue 115 Adventurer 0 Explorer 0 Win Type - Total 3 Types 2/0/0/0/0/0/0/0/0/1 Lore% 75 Gallery% 70 Achievement% 59 Wizard Run 0 Options --------- Layout 1 ASCII 0 Keyboard 0 Movement Mouse Keybinds 0 Fullscreen 2 Font 32/SmallcapsGlow Map View 50x35 Zoom Use 0% Tactical HUD 1 Map Filters NONE Filters NONE Steam 1 RUN: 7d30b096-a934-4f2f-b131-d9a5216a25b8